[Event "Turkish Cup 2022"]
[Site "Sakarya"]
[Date "2022.03.28"]
[Round "6.13"]
[White "Ozdemir, Serhan Berat"]
[Black "Koc, Ilkay"]
[Result "1-0"]
[ECO "B90"]
[WhiteElo "2185"]
[BlackElo "1995"]
[Annotator "NA"]
[PlyCount "95"]
[EventDate "2022.03.25"]
[EventType "swiss"]
[EventCountry "TUR"]
[SourceTitle "playchess.com"]
[Source "ChessBase"]
[SourceQuality "1"]
[TimeControl "5400+30"]

1. e4 {[%emt 0:09:00]} c5 {[%emt 0:01:00]} 2. Nf3 {[%emt 0:00:30]} d6 {[%emt 0:00:00]} 3. d4 {[%emt 0:00:00]} cxd4 {[%emt 0:00:00]} 4. Nxd4 {[%emt 0:00:00]} Nf6 {[%emt 0:00:30]} 5. Nc3 {[%emt 0:00:30]} a6 {[%emt 0:00:30]} 6. f3 {[%emt 0:00:00]} e5 {[%emt 0:00:00]} 7. Nb3 {[%emt 0:00:00]} Be6 {[%emt 0:00:00]} 8. Be3 {[%emt 0:00:00]} Be7 {[%emt 0:00:30]} 9. Qd2 {[%emt 0:00:00]} O-O {[%emt 0:00:30]} 10. O-O-O {[%emt 0:00:00]} Nbd7 {[%emt 0:00:30]} 11. g4 {[%emt 0:00:00]} b5 {[%emt 0:00:00]} 12. g5 {[%emt 0:00:30]} b4 {[%emt 0:00:00]} 13. Ne2 {[%emt 0:00:30]} Ne8 {[%emt 0:00:00]} 14. f4 {[%emt 0:00:00]} a5 {[%emt 0:00:00]} 15. f5 {[%emt 0:00:00]} a4 {[%emt 0:00:30]} 16. Nbd4 {[%emt 0:00:00]} exd4 {[%emt 0:00:30]} 17. Nxd4 {[%emt 0:00:00]} b3 {[%emt 0:00:00]} 18. Kb1 {[%emt 0:00:30]} bxc2+ {[%emt 0:00:00]} 19. Nxc2 {[%emt 0:00:00]} Bb3 {[%emt 0:00:30]} 20. axb3 {[%emt 0:00:00]} axb3 {[%emt 0:00:30]} 21. Na3 {[%emt 0:00:00]} Ne5 {[%emt 0:00:00]} 22. Qg2 {[%emt 0:01:00]} Qb8 {[%emt 0:00:00]} 23. h4 {[%emt 0:07:30]} Ra4 {[%emt 0:06:30]} 24. Bd4 {[%emt 0:07:30]} Bd8 {[%emt 0:03:30]} 25. Rh3 {[%emt 0:03:30]} Qb4 {[%emt 0:20:30]} 26. h5 {[%emt 0:06:30]} Bb6 {[%emt 0:02:30]} 27. Bxb6 {[%emt 0:14:30]} Qxb6 {[%emt 0:00:30]} 28. Rg3 {[%emt 0:18:30]} Qb4 {[%emt 0:09:30]} 29. Re3 {[%emt 0:01:30]} Nc7 {[%emt 0:08:30]} 30. Rc1 {[%emt 0:05:30]} Qb6 {[%emt 0:08:30]} 31. Qg3 {[%emt 0:03:30]} Rb8 {[%emt 0:02:30]} 32. Rec3 {[%emt 0:00:00]} Ne8 {[%emt 0:02:30]} 33. Qe3 {[%emt 0:06:48]} Qb7 {[%emt 0:02:30]} 34. Re1 {[%emt 0:04:33]} Rb4 {[%emt 0:02:30]} 35. h6 {[%emt 0:02:28]} gxh6 {[%emt 0:04:30]} 36. gxh6 {[%emt 0:00:43]} Kf8 {[%emt 0:00:30]} 37. Bg2 {[%emt 0:03:05]} Qb6 {[%emt 0:02:30]} 38. Qg3 {[%emt 0:01:58]} Qa6 {[%emt 0:01:30]} 39. Bf1 {[%emt 0:02:26]} Qb7 {[%emt 0:02:30]} 40. Bg2 {[%emt 0:00:03]} Qa6 {[%emt 0:00:30]} 41. f6 {[%emt 0:01:31]} Qa5 {[%emt 0:06:17]} 42. Bh3 {[%emt 0:01:57]} Ra8 {[%emt 0:02:42]} 43. Bf5 {[%emt 0:01:57]} Nxf6 {[%emt 0:04:34]} 44. Rec1 {[%emt 0:00:44]} Ra7 {[%emt 0:03:38]} 45. Qg7+ {[%emt 0:01:15]} Ke7 {[%emt 0:00:02]} 46. Rc8 {[%emt 0:00:04]} Ned7 {[%emt 0:01:16]} 47. Rg1 {[%emt 0:00:43]} Qe5 {[%emt 0:04:54]} 48. Qxf7+ {[%emt 0:00:11]} 1-0

[Event "Turkish Cup 2022"]
[Site "Sakarya"]
[Date "2022.03.28"]
[Round "6.14"]
[White "Kavri, Yusuf Eren"]
[Black "Zor, Alber Kadir"]
[Result "1/2-1/2"]
[ECO "D36"]
[WhiteElo "1886"]
[BlackElo "2147"]
[Annotator "NA"]
[PlyCount "34"]
[EventDate "2022.03.25"]
[EventType "swiss"]
[EventCountry "TUR"]
[SourceTitle "playchess.com"]
[Source "ChessBase"]
[SourceQuality "1"]
[TimeControl "5400+30"]

1. d4 {[%emt 0:01:00]} d5 {[%emt 0:02:00]} 2. c4 {[%emt 0:00:00]} e6 {[%emt 0:02:30]} 3. Nc3 {[%emt 0:00:00]} c6 {[%emt 0:00:30]} 4. cxd5 {[%emt 0:03:30]} exd5 {[%emt 0:00:30]} 5. Nf3 {[%emt 0:00:30]} Nf6 {[%emt 0:01:30]} 6. Qc2 {[%emt 0:01:30]} g6 {[%emt 0:02:30]} 7. Bg5 {[%emt 0:00:30]} Be7 {[%emt 0:00:30]} 8. e3 {[%emt 0:02:30]} Bf5 {[%emt 0:00:30]} 9. Bd3 {[%emt 0:02:30]} Bxd3 {[%emt 0:00:30]} 10. Qxd3 {[%emt 0:00:00]} Nbd7 {[%emt 0:00:30]} 11. O-O {[%emt 0:00:00]} O-O {[%emt 0:01:30]} 12. Rab1 {[%emt 0:04:30]} a5 {[%emt 0:01:30]} 13. Qc2 {[%emt 0:04:30]} Re8 {[%emt 0:03:30]} 14. a3 {[%emt 0:04:30]} Ne4 {[%emt 0:37:30]} 15. Bxe7 {[%emt 0:06:30]} Qxe7 {[%emt 0:00:30]} 16. Nxe4 {[%emt 0:10:30]} dxe4 {[%emt 0:00:30]} 17. Nd2 {[%emt 0:00:00]} a4 {[%emt 0:05:30]} 1/2-1/2

[Event "Turkish Cup 2022"]
[Site "Sakarya"]
[Date "2022.03.28"]
[Round "6.15"]
[White "Melik, Enes"]
[Black "Ererdem, Gani Eren"]
[Result "0-1"]
[ECO "A03"]
[WhiteElo "1592"]
[BlackElo "2134"]
[Annotator "NA"]
[PlyCount "108"]
[EventDate "2022.03.25"]
[EventType "swiss"]
[EventCountry "TUR"]
[SourceTitle "playchess.com"]
[Source "ChessBase"]
[SourceQuality "1"]
[TimeControl "5400+30"]

1. f4 d5 {[%emt 0:01:00]} 2. b3 {[%emt 0:01:30]} Bg4 {[%emt 0:00:30]} 3. g3 {[%emt 0:02:30]} Nc6 {[%emt 0:00:30]} 4. Bg2 {[%emt 0:01:30]} e5 {[%emt 0:08:30]} 5. fxe5 {[%emt 0:03:30]} Nxe5 {[%emt 0:11:30]} 6. Bb2 {[%emt 0:08:30]} Qe7 {[%emt 0:05:30]} 7. d4 {[%emt 0:09:30]} Ng6 {[%emt 0:02:30]} 8. Nc3 {[%emt 0:01:30]} Nf6 {[%emt 0:15:30]} 9. Qd3 {[%emt 0:07:30]} Qd7 {[%emt 0:08:30]} 10. O-O-O {[%emt 0:09:30]} O-O-O {[%emt 0:07:30]} 11. Bf3 {[%emt 0:12:30]} Bb4 {[%emt 0:04:30]} 12. a3 {[%emt 0:21:14]} Bxc3 {[%emt 0:00:30]} 13. Qxc3 {[%emt 0:05:17]} Rhe8 {[%emt 0:00:30]} 14. h3 {[%emt 0:06:46]} Bf5 {[%emt 0:00:30]} 15. g4 {[%emt 0:00:00]} Be4 {[%emt 0:00:30]} 16. Rh2 {[%emt 0:01:37]} Re6 {[%emt 0:02:30]} 17. Qd2 {[%emt 0:01:51]} Rc6 {[%emt 0:02:30]} 18. c3 {[%emt 0:00:59]} Rb6 {[%emt 0:02:30]} 19. b4 {[%emt 0:00:47]} Qd6 {[%emt 0:00:30]} 20. Rf2 {[%emt 0:00:33]} h6 {[%emt 0:01:30]} 21. Rdf1 {[%emt 0:01:18]} Re8 {[%emt 0:00:30]} 22. g5 {[%emt 0:00:53]} hxg5 {[%emt 0:00:30]} 23. Qxg5 {[%emt 0:00:01]} Bxf3 {[%emt 0:07:17]} 24. exf3 {[%emt 0:00:22]} Nf4 {[%emt 0:08:21]} 25. Kc2 {[%emt 0:00:01]} N6h5 {[%emt 0:00:05]} 26. Bc1 {[%emt 0:02:08]} Qg6+ {[%emt 0:00:30]} 27. Qxg6 {[%emt 0:00:30]} Rxg6 {[%emt 0:00:00]} 28. Bxf4 {[%emt 0:01:44]} Nxf4 {[%emt 0:00:02]} 29. Kd2 {[%emt 0:00:00]} Rxg1 {[%emt 0:05:03]} 30. Rxg1 {[%emt 0:00:05]} Nxh3 {[%emt 0:00:00]} 31. Rfg2 {[%emt 0:00:09]} Nxg1 {[%emt 0:00:24]} 32. Rxg1 {[%emt 0:00:30]} g6 {[%emt 0:00:00]} 33. Rh1 {[%emt 0:00:00]} Kd7 {[%emt 0:00:16]} 34. Kd3 {[%emt 0:00:32]} Ke7 {[%emt 0:01:06]} 35. Ke3 {[%emt 0:01:20]} Kf6+ {[%emt 0:00:48]} 36. Kf2 {[%emt 0:00:04]} Kf5 {[%emt 0:01:38]} 37. a4 {[%emt 0:00:01]} a6 {[%emt 0:01:11]} 38. Rh2 {[%emt 0:01:12]} g5 {[%emt 0:01:09]} 39. Rh7 {[%emt 0:00:59]} Kg6 {[%emt 0:00:30]} 40. Rh1 {[%emt 0:00:30]} Re6 {[%emt 0:00:00]} 41. Rc1 {[%emt 0:00:00]} Rc6 {[%emt 0:00:16]} 42. a5 {[%emt 0:01:01]} Kf5 {[%emt 0:01:29]} 43. Kg3 {[%emt 0:00:01]} Re6 {[%emt 0:01:28]} 44. Kf2 {[%emt 0:00:10]} Kf4 {[%emt 0:01:19]} 45. c4 {[%emt 0:01:52]} Rc6 {[%emt 0:00:01]} 46. c5 {[%emt 0:00:07]} Re6 {[%emt 0:01:00]} 47. Rc3 {[%emt 0:00:30]} c6 {[%emt 0:00:00]} 48. Rd3 {[%emt 0:00:37]} f5 {[%emt 0:00:09]} 49. Rb3 {[%emt 0:00:25]} g4 {[%emt 0:00:10]} 50. Rd3 {[%emt 0:00:50]} g3+ {[%emt 0:00:40]} 51. Kg2 {[%emt 0:00:30]} Re2+ {[%emt 0:00:00]} 52. Kg1 {[%emt 0:00:51]} Re3 {[%emt 0:00:09]} 53. Rd1 {[%emt 0:00:15]} Kxf3 {[%emt 0:00:12]} 54. Rf1+ {[%emt 0:00:52]} Kg4 {[%emt 0:00:08]} 0-1

[Event "Turkish Cup 2022"]
[Site "Sakarya"]
[Date "2022.03.28"]
[Round "6.16"]
[White "Tarhan, Adar"]
[Black "Daghan, Devran"]
[Result "0-1"]
[ECO "B12"]
[WhiteElo "2125"]
[BlackElo "1985"]
[Annotator "NA"]
[PlyCount "118"]
[EventDate "2022.03.25"]
[EventType "swiss"]
[EventCountry "TUR"]
[SourceTitle "playchess.com"]
[Source "ChessBase"]
[SourceQuality "1"]
[TimeControl "5400+30"]

1. e4 c6 2. d4 d5 3. e5 Bf5 4. Nf3 {[%emt 0:01:30]} e6 {[%emt 0:01:30]} 5. Be2 {[%emt 0:00:30]} Ne7 {[%emt 0:00:30]} 6. O-O {[%emt 0:00:30]} Ng6 {[%emt 0:00:00]} 7. Ne1 {[%emt 0:04:30]} h5 {[%emt 0:03:00]} 8. Be3 {[%emt 0:01:30]} h4 {[%emt 0:02:30]} 9. Nd2 {[%emt 0:02:30]} Be7 {[%emt 0:01:30]} 10. Nb3 {[%emt 0:01:30]} Nd7 {[%emt 0:01:30]} 11. h3 {[%emt 0:01:30]} O-O {[%emt 0:11:30]} 12. f4 {[%emt 0:06:30]} Rc8 {[%emt 0:00:30]} 13. Bd3 {[%emt 0:01:30]} Bxd3 {[%emt 0:06:30]} 14. Nxd3 {[%emt 0:03:30]} f5 {[%emt 0:01:30]} 15. exf6 {[%emt 0:00:30]} Nxf6 {[%emt 0:03:30]} 16. Qe2 {[%emt 0:05:30]} Bd6 {[%emt 0:02:30]} 17. Rae1 {[%emt 0:02:30]} b6 {[%emt 0:06:30]} 18. Nd2 {[%emt 0:04:30]} c5 {[%emt 0:08:30]} 19. c3 {[%emt 0:01:30]} Qc7 {[%emt 0:09:30]} 20. Ne5 {[%emt 0:06:30]} Ne7 {[%emt 0:01:30]} 21. Bf2 {[%emt 0:03:30]} Nf5 {[%emt 0:00:30]} 22. Ng6 {[%emt 0:06:30]} Rfe8 {[%emt 0:00:30]} 23. Qd3 {[%emt 0:00:00]} cxd4 {[%emt 0:03:30]} 24. Nf3 {[%emt 0:07:00]} dxc3 {[%emt 0:02:30]} 25. Rxe6 {[%emt 0:02:30]} Rxe6 {[%emt 0:01:30]} 26. Qxf5 {[%emt 0:00:30]} Ree8 {[%emt 0:07:30]} 27. bxc3 {[%emt 0:00:30]} Qxc3 {[%emt 0:03:30]} 28. Nfxh4 {[%emt 0:05:30]} Bc5 {[%emt 0:10:12]} 29. Ne5 {[%emt 0:04:30]} Bxf2+ {[%emt 0:01:25]} 30. Rxf2 {[%emt 0:00:30]} Qe3 {[%emt 0:01:51]} 31. Ng4 {[%emt 0:02:30]} Rc1+ {[%emt 0:05:37]} 32. Kh2 {[%emt 0:00:30]} Nxg4+ {[%emt 0:00:30]} 33. hxg4 {[%emt 0:00:00]} Rc5 {[%emt 0:03:34]} 34. Qh5 {[%emt 0:02:00]} d4 {[%emt 0:01:42]} 35. g5 {[%emt 0:01:30]} Qe4 {[%emt 0:00:31]} 36. Ng6 {[%emt 0:01:30]} Rf5 {[%emt 0:00:35]} 37. Qh8+ {[%emt 0:06:30]} Kf7 {[%emt 0:00:30]} 38. Qh7 {[%emt 0:00:00]} Re6 {[%emt 0:00:27]} 39. Nh8+ {[%emt 0:01:08]} Ke8 {[%emt 0:00:31]} 40. Ng6 {[%emt 0:01:35]} Kd8 {[%emt 0:00:32]} 41. Qxg7 {[%emt 0:00:56]} d3 {[%emt 0:00:30]} 42. Qh8+ {[%emt 0:05:42]} Kc7 {[%emt 0:00:28]} 43. Qg8 {[%emt 0:06:46]} Re8 {[%emt 0:00:32]} 44. Qb3 {[%emt 0:01:06]} Rd5 {[%emt 0:00:28]} 45. Ne5 {[%emt 0:02:08]} Qd4 {[%emt 0:00:16]} 46. Rf3 {[%emt 0:00:49]} d2 {[%emt 0:00:40]} 47. Qc2+ {[%emt 0:00:44]} Rc5 {[%emt 0:00:54]} 48. Qh7+ {[%emt 0:00:16]} Kc8 {[%emt 0:00:11]} 49. Qf5+ {[%emt 0:01:13]} Kb7 {[%emt 0:00:10]} 50. Rd3 {[%emt 0:00:09]} Rh8+ {[%emt 0:00:35]} 51. Kg3 {[%emt 0:00:23]} d1=Q {[%emt 0:00:30]} 52. Rxd1 {[%emt 0:00:56]} Qxd1 {[%emt 0:00:39]} 53. Qf7+ {[%emt 0:00:30]} Rc7 {[%emt 0:00:00]} 54. Qf6 {[%emt 0:00:22]} Qe1+ {[%emt 0:00:00]} 55. Kg4 {[%emt 0:00:20]} Qe2+ {[%emt 0:00:25]} 56. Kg3 {[%emt 0:00:00]} Rc3+ {[%emt 0:00:08]} 57. Nf3 {[%emt 0:00:27]} Rxf3+ {[%emt 0:00:30]} 58. gxf3 {[%emt 0:00:30]} Qh2+ {[%emt 0:00:00]} 59. Kg4 {[%emt 0:00:00]} Qh3# {[%emt 0:00:00]} 0-1

[Event "Turkish Cup 2022"]
[Site "Sakarya"]
[Date "2022.03.28"]
[Round "6.17"]
[White "Isilak, Enes"]
[Black "Akin, Kadir"]
[Result "1-0"]
[ECO "E05"]
[WhiteElo "2125"]
[BlackElo "1964"]
[Annotator "NA"]
[PlyCount "131"]
[EventDate "2022.03.25"]
[EventType "swiss"]
[EventCountry "TUR"]
[SourceTitle "playchess.com"]
[Source "ChessBase"]
[SourceQuality "1"]
[TimeControl "5400+30"]

1. d4 {[%emt 0:01:00]} d5 {[%emt 0:09:00]} 2. c4 {[%emt 0:00:00]} e6 {[%emt 0:00:30]} 3. Nf3 {[%emt 0:00:00]} Nf6 {[%emt 0:00:30]} 4. g3 {[%emt 0:00:30]} Be7 {[%emt 0:00:00]} 5. Bg2 {[%emt 0:00:30]} O-O {[%emt 0:00:00]} 6. O-O {[%emt 0:00:30]} dxc4 {[%emt 0:00:00]} 7. Qc2 {[%emt 0:00:30]} a6 {[%emt 0:00:00]} 8. Qxc4 {[%emt 0:00:30]} b5 {[%emt 0:00:00]} 9. Qc2 {[%emt 0:00:00]} Bb7 {[%emt 0:00:00]} 10. Bd2 {[%emt 0:00:00]} Be4 {[%emt 0:00:30]} 11. Qc1 {[%emt 0:00:00]} Bb7 {[%emt 0:00:00]} 12. a3 {[%emt 0:00:00]} Nbd7 {[%emt 0:00:00]} 13. Ba5 {[%emt 0:00:00]} Nb6 {[%emt 0:01:30]} 14. Nbd2 {[%emt 0:00:00]} Rc8 {[%emt 0:10:30]} 15. b4 {[%emt 0:02:30]} Ne4 {[%emt 0:06:30]} 16. Nxe4 {[%emt 0:38:30]} Bxe4 {[%emt 0:00:30]} 17. Bxb6 {[%emt 0:00:30]} cxb6 {[%emt 0:00:30]} 18. Qe3 {[%emt 0:00:30]} Qd5 {[%emt 0:03:30]} 19. Ne1 {[%emt 0:09:30]} Bxg2 {[%emt 0:01:30]} 20. Nxg2 {[%emt 0:00:30]} Bf6 {[%emt 0:00:30]} 21. Rad1 {[%emt 0:02:30]} Rfd8 {[%emt 0:09:30]} 22. Nf4 {[%emt 0:00:30]} Qc4 {[%emt 0:24:30]} 23. d5 {[%emt 0:04:30]} exd5 {[%emt 0:03:30]} 24. Qxb6 {[%emt 0:13:30]} Rc6 {[%emt 0:02:30]} 25. Qe3 {[%emt 0:02:30]} Rcd6 {[%emt 0:05:30]} 26. Rd3 {[%emt 0:04:49]} d4 {[%emt 0:12:32]} 27. Qf3 {[%emt 0:00:20]} Qc6 {[%emt 0:01:09]} 28. Qg4 {[%emt 0:02:56]} Qe4 {[%emt 0:03:13]} 29. Rc1 {[%emt 0:07:26]} Be5 {[%emt 0:02:10]} 30. f3 {[%emt 0:04:43]} Qb7 {[%emt 0:00:02]} 31. Rc5 {[%emt 0:00:49]} Qe7 {[%emt 0:00:52]} 32. Kf1 {[%emt 0:02:23]} g6 {[%emt 0:02:21]} 33. Ng2 {[%emt 0:00:56]} f5 {[%emt 0:00:39]} 34. Qh4 {[%emt 0:00:56]} Bf6 {[%emt 0:00:16]} 35. Qf4 {[%emt 0:00:51]} Bg5 {[%emt 0:01:13]} 36. Qe5 {[%emt 0:00:30]} Re6 {[%emt 0:00:30]} 37. Qc7 {[%emt 0:00:00]} Rd7 {[%emt 0:01:43]} 38. Qc8+ {[%emt 0:01:09]} Rd8 {[%emt 0:00:15]} 39. Qc7 {[%emt 0:00:58]} Rd7 {[%emt 0:00:01]} 40. Qb8+ {[%emt 0:00:09]} Kg7 {[%emt 0:00:44]} 41. Rc2 {[%emt 0:00:36]} Rd8 {[%emt 0:00:21]} 42. Qc7 {[%emt 0:00:32]} Rd7 {[%emt 0:00:08]} 43. Qc5 {[%emt 0:00:41]} Red6 {[%emt 0:00:16]} 44. f4 {[%emt 0:01:14]} Bf6 {[%emt 0:00:30]} 45. Ne1 {[%emt 0:00:00]} Qe4 {[%emt 0:02:10]} 46. Nf3 {[%emt 0:00:06]} Qe6 {[%emt 0:00:10]} 47. Qc8 {[%emt 0:01:43]} Qe7 {[%emt 0:01:05]} 48. Qc5 {[%emt 0:01:00]} Qe6 {[%emt 0:00:17]} 49. Ne5 {[%emt 0:00:12]} Bxe5 {[%emt 0:00:37]} 50. Qxe5+ {[%emt 0:00:30]} Qxe5 {[%emt 0:00:02]} 51. fxe5 {[%emt 0:00:00]} Rd5 {[%emt 0:00:59]} 52. Rc6 {[%emt 0:00:07]} Rxe5 {[%emt 0:00:02]} 53. Rxa6 {[%emt 0:00:30]} Rde7 {[%emt 0:00:01]} 54. Rd2 {[%emt 0:00:00]} Re3 {[%emt 0:00:33]} 55. Ra5 {[%emt 0:00:08]} R7e5 {[%emt 0:00:18]} 56. Ra7+ {[%emt 0:00:29]} Kf6 {[%emt 0:00:25]} 57. Rxh7 {[%emt 0:02:06]} Rxa3 {[%emt 0:00:02]} 58. Rxd4 {[%emt 0:00:11]} Ra2 {[%emt 0:00:43]} 59. Rd6+ {[%emt 0:00:47]} Re6 {[%emt 0:02:24]} 60. Rxe6+ {[%emt 0:00:30]} Kxe6 {[%emt 0:00:30]} 61. Rb7 {[%emt 0:00:30]} Ke5 {[%emt 0:00:00]} 62. Rxb5+ {[%emt 0:00:00]} Ke4 {[%emt 0:00:00]} 63. Rb8 {[%emt 0:00:35]} Ra1+ {[%emt 0:00:33]} 64. Kf2 {[%emt 0:00:45]} Rh1 {[%emt 0:00:02]} 65. h4 {[%emt 0:00:30]} Rh2+ {[%emt 0:01:29]} 66. Kg1 {[%emt 0:00:20]} 1-0

[Event "Turkish Cup 2022"]
[Site "Sakarya"]
[Date "2022.03.28"]
[Round "6.18"]
[White "Sahin, Huseyin"]
[Black "Yazici, Ugur Doga"]
[Result "0-1"]
[ECO "A03"]
[WhiteElo "1788"]
[BlackElo "2195"]
[Annotator "NA"]
[PlyCount "66"]
[EventDate "2022.03.25"]
[EventType "swiss"]
[EventCountry "TUR"]
[SourceTitle "playchess.com"]
[Source "ChessBase"]
[SourceQuality "1"]
[TimeControl "5400+30"]

1. d4 {[%emt 0:01:00]} d5 {[%emt 0:07:00]} 2. f4 {[%emt 0:00:00]} Nf6 {[%emt 0:00:00]} 3. Nf3 {[%emt 0:00:00]} g6 {[%emt 0:01:00]} 4. e3 {[%emt 0:00:30]} Bg7 {[%emt 0:00:30]} 5. Bd3 {[%emt 0:00:00]} c5 {[%emt 0:00:00]} 6. c3 {[%emt 0:00:00]} O-O {[%emt 0:00:00]} 7. O-O {[%emt 0:00:00]} b6 {[%emt 0:00:30]} 8. Qe2 {[%emt 0:00:00]} Bb7 {[%emt 0:00:30]} 9. Nbd2 {[%emt 0:00:00]} Nc6 {[%emt 0:00:30]} 10. Ne5 {[%emt 0:00:00]} e6 {[%emt 0:00:30]} 11. b3 {[%emt 0:00:30]} Ne7 {[%emt 0:02:30]} 12. Bb2 {[%emt 0:02:30]} Rc8 {[%emt 0:01:30]} 13. Rac1 {[%emt 0:00:00]} Rc7 {[%emt 0:02:30]} 14. a4 {[%emt 0:01:00]} Ne4 {[%emt 0:03:30]} 15. Nxe4 {[%emt 0:08:30]} dxe4 {[%emt 0:00:30]} 16. Bb1 {[%emt 0:01:30]} Qc8 {[%emt 0:04:30]} 17. c4 {[%emt 0:02:30]} h5 {[%emt 0:03:30]} 18. dxc5 {[%emt 0:07:30]} bxc5 {[%emt 0:00:30]} 19. g4 {[%emt 0:00:30]} f6 {[%emt 0:02:30]} 20. gxh5 {[%emt 0:13:30]} fxe5 {[%emt 0:02:30]} 21. hxg6 {[%emt 0:06:30]} Nxg6 {[%emt 0:01:30]} 22. Qg4 {[%emt 0:01:30]} Qe8 {[%emt 0:02:30]} 23. h4 {[%emt 0:02:30]} exf4 {[%emt 0:00:30]} 24. Ba3 {[%emt 0:05:30]} Ne5 {[%emt 0:01:30]} 25. Qh3 {[%emt 0:01:30]} Qg6+ {[%emt 0:00:30]} 26. Kh1 {[%emt 0:00:30]} Qg4 {[%emt 0:01:30]} 27. Qxg4 {[%emt 0:01:30]} Nxg4 {[%emt 0:00:30]} 28. Rxf4 {[%emt 0:00:00]} Bd4 {[%emt 0:00:30]} 29. Kg2 {[%emt 0:00:00]} Rxf4 {[%emt 0:00:30]} 30. exf4 {[%emt 0:00:30]} Rg7 {[%emt 0:00:30]} 31. Re1 {[%emt 0:02:30]} e3+ {[%emt 0:00:00]} 32. Kf1 {[%emt 0:01:30]} Bf3 {[%emt 0:00:00]} 33. Bc1 {[%emt 0:00:30]} Nh2# {[%emt 0:00:30]} 0-1

[Event "Turkish Cup 2022"]
[Site "Sakarya"]
[Date "2022.03.28"]
[Round "6.19"]
[White "Bacak, Muhammed Kaan"]
[Black "Karadag, Eflatun Cem"]
[Result "1/2-1/2"]
[ECO "C41"]
[WhiteElo "2155"]
[BlackElo "1800"]
[Annotator "NA"]
[PlyCount "88"]
[EventDate "2022.03.25"]
[EventType "swiss"]
[EventCountry "TUR"]
[SourceTitle "playchess.com"]
[Source "ChessBase"]
[SourceQuality "1"]
[TimeControl "5400+30"]

1. e4 {[%emt 0:01:00]} d6 {[%emt 0:02:00]} 2. d4 {[%emt 0:00:30]} Nf6 {[%emt 0:00:30]} 3. Nc3 {[%emt 0:00:00]} e5 {[%emt 0:01:30]} 4. Nf3 {[%emt 0:00:00]} Nbd7 {[%emt 0:01:30]} 5. Bc4 {[%emt 0:00:30]} Be7 {[%emt 0:01:30]} 6. O-O {[%emt 0:00:30]} O-O {[%emt 0:00:30]} 7. a4 {[%emt 0:00:30]} a5 {[%emt 0:01:30]} 8. h3 {[%emt 0:00:30]} c6 {[%emt 0:02:30]} 9. Re1 {[%emt 0:00:30]} Nb6 {[%emt 0:04:30]} 10. Ba2 {[%emt 0:00:30]} Nfd7 {[%emt 0:01:30]} 11. Be3 {[%emt 0:01:30]} exd4 {[%emt 0:01:30]} 12. Nxd4 {[%emt 0:00:30]} Nc5 {[%emt 0:03:30]} 13. Qh5 {[%emt 0:18:30]} Bf6 {[%emt 0:03:30]} 14. Nf3 {[%emt 0:36:30]} g6 {[%emt 0:09:30]} 15. Qh6 {[%emt 0:00:00]} Ne6 {[%emt 0:04:30]} 16. Bxe6 {[%emt 0:02:00]} Bxe6 {[%emt 0:05:30]} 17. Bg5 {[%emt 0:02:30]} Nc4 {[%emt 0:04:30]} 18. Qh4 {[%emt 0:11:30]} Bxg5 {[%emt 0:02:30]} 19. Nxg5 {[%emt 0:00:30]} h5 {[%emt 0:01:30]} 20. Qf4 {[%emt 0:01:30]} Kg7 {[%emt 0:01:30]} 21. b3 {[%emt 0:01:30]} Ne5 {[%emt 0:01:30]} 22. Rad1 {[%emt 0:00:30]} Qe7 {[%emt 0:02:30]} 23. Qe3 {[%emt 0:00:30]} f6 {[%emt 0:03:30]} 24. Nxe6+ {[%emt 0:00:30]} Qxe6 {[%emt 0:00:30]} 25. Rd2 {[%emt 0:00:30]} Nf7 {[%emt 0:03:30]} 26. Ne2 {[%emt 0:00:45]} Rfe8 {[%emt 0:02:30]} 27. Nf4 {[%emt 0:01:36]} Qe5 {[%emt 0:03:30]} 28. h4 {[%emt 0:04:20]} Rad8 {[%emt 0:02:30]} 29. Qg3 {[%emt 0:00:30]} Nh8 {[%emt 0:01:30]} 30. Re3 {[%emt 0:01:43]} Kh6 {[%emt 0:01:30]} 31. c4 {[%emt 0:01:15]} Rg8 {[%emt 0:02:30]} 32. Qf3 {[%emt 0:00:22]} Nf7 {[%emt 0:02:30]} 33. Rd1 {[%emt 0:01:33]} Kg7 {[%emt 0:01:30]} 34. Ne2 {[%emt 0:01:37]} Qe7 {[%emt 0:02:30]} 35. Qg3 {[%emt 0:00:17]} Ne5 {[%emt 0:01:00]} 36. Nd4 {[%emt 0:00:36]} Kf7 {[%emt 0:02:58]} 37. Ree1 {[%emt 0:00:39]} Ng4 {[%emt 0:03:29]} 38. Nf3 {[%emt 0:01:11]} Rge8 {[%emt 0:02:57]} 39. Qf4 {[%emt 0:00:20]} Kg7 {[%emt 0:01:01]} 40. Qd2 {[%emt 0:00:05]} Qc7 {[%emt 0:00:32]} 41. Qc3 {[%emt 0:00:50]} Qb6 {[%emt 0:02:56]} 42. Qb2 {[%emt 0:02:57]} Kf7 {[%emt 0:02:06]} 43. Re2 {[%emt 0:00:26]} Qc5 {[%emt 0:01:11]} 44. Rde1 {[%emt 0:02:07]} Re7 {[%emt 0:01:07]} 1/2-1/2